Workbook

Sheet 表紙 (hidden)
F5: 御中
H14: 太陽光発電事業のご提案
H21: 年 月

Sheet 予備計算シート (hidden)
B1: １．地域ごと日射量 | I1: ２．設置傾斜角・方位角［係数］ | M1: ３．環境保全換算［係数］
F2: 所在地（市区） | G2: 全天日射量 | J2: 傾斜/方位
F3: － | G3: 0 | J3: 0°(平置き) | K3: 0.893 | N3: 石油節減効果 | O3: L | P3: 0.2270145107
B4: 北海道 | C4: 札幌市 | D4: 43°04'N | E4: 141°21'E | F4: 札幌市 | G4: 1448 | J4: 10°/真南 | K4: 0.949
C5: 稚内市 | D5: 45°25'N | E5: 141°40'E | F5: 稚内市 | G5: 1398 | J5: 10°/南西(東)15° | K5: 0.947 | N5: ＣＯ2削減効果 | O5: Kg- CO2 | P5: 0.3145106514
C6: 釧路市 | D6: 42°59'N | E6: 144°23'E | F6: 釧路市 | G6: 1450 | J6: 10°/南西(東)30° | K6: 0.941
C7: 函館市 | D7: 41°46'N | E7: 140°44'E | F7: 函館市 | G7: 1474 | J7: 10°/南西(東)45° | K7: 0.93 | N7: 森林面積換算 | O7: ㎡ | P7: 0.8805763916
B8: 青森県 | C8: 青森市 | D8: 40°49'N | E8: 140°45'E | F8: 青森市 | G8: 1428 | J8: 10°/南西(東)60° | K8: 0.917
C9: 八戸市 | D9: 40°30'N | E9: 141°29'E | F9: 八戸市 | G9: 1498 | J9: 10°/南西(東)75° | K9: 0.901
C10: 弘前市 | D10: 40°36'N | E10: 140°28'E | F10: 弘前市 | G10: 1496 | J10: 10°/真西(東)90° | K10: 0.885
B11: 秋田県 | C11: 秋田市 | D11: 39°43'N | E11: 140°06'E | F11: 秋田市 | G11: 1392 | J11: 30°/真南 | K11: 1
C12: 大館市 | D12: 40°16'N | E12: 140°34'E | F12: 大館市 | G12: 1502 | J12: 30°/南西(東)15° | K12: 0.995
C13: 横手市 | D13: 39°18'N | E13: 140°34'E | F13: 横手市 | G13: 1519 | J13: 30°/南西(東)30° | K13: 0.979
B14: 岩手県 | C14: 盛岡市 | D14: 39°42'N | E14: 141°09'E | F14: 盛岡市 | G14: 1449 | J14: 30°/南西(東)45° | K14: 0.952
C15: 大船渡市 | D15: 39°04'N | E15: 141°42'E | F15: 大船渡市 | G15: 1523 | J15: 30°/南西(東)60° | K15: 0.92
C16: 久慈市 | D16: 40°11'N | E16: 141°46'E | F16: 久慈市 | G16: 1503 | J16: 30°/南西(東)75° | K16: 0.88
B17: 山形県 | C17: 山形市 | D17: 38°15'N | E17: 140°21'E | F17: 山形市 | G17: 1438 | J17: 30°/真西(東)90° | K17: 0.837
C18: 米沢市 | D18: 37°55'N | E18: 140°07'E | F18: 米沢市 | G18: 1542
B19: 宮城県 | C19: 仙台市 | D19: 38°16'N | E19: 140°52'E | F19: 仙台市 | G19: 1432
C20: 気仙沼市 | D20: 38°54'N | E20: 141°34'E | F20: 気仙沼市 | G20: 1537
B21: 福島県 | C21: 福島市 | D21: 37°46'N | E21: 140°28'E | F21: 福島市 | G21: 1428
C22: 会津若松市 | D22: 37°29'N | E22: 139°55'E | F22: 会津若松市 | G22: 1550
C23: いわき市 | D23: 37°02'N | E23: 140°53'E | F23: いわき市 | G23: 1557
F24: － | G24: 0
B25: 栃木県 | C25: 宇都宮市 | D25: 36°33'N | E25: 139°53'E | F25: 宇都宮市 | G25: 1489
C26: 大田原市 | D26: 36°52'N | E26: 140°01'E | F26: 大田原市 | G26: 1559
B27: 群馬県 | C27: 前橋市 | D27: 36°24'N | E27: 139°04'E | F27: 前橋市 | G27: 1558
C28: 富岡市 | D28: 36°15'N | E28: 138°53'E | F28: 富岡市 | G28: 1569
B29: 茨城県 | C29: 水戸市 | D29: 36°22'N | E29: 140°28'E | F29: 水戸市 | G29: 1524
C30: つくば市 | D30: 36°01'N | E30: 140°04'E | F30: つくば市 | G30: 1572
C31: 高萩市 | D31: 36°42'N | E31: 140°42'E | F31: 高萩市 | G31: 1562
B32: 埼玉県 | C32: 熊谷市 | D32: 36°09'N | E32: 139°23'E | F32: 熊谷市 | G32: 1495
C33: さいたま市 | D33: 35°51'N | E33: 139°38'E | F33: さいたま市 | G33: 1575
C34: 川越市 | D34: 35°55'N | E34: 139°29'E | F34: 川越市 | G34: 1574
B35: 千葉県 | C35: 千葉市 | D35: 35°36'N | E35: 140°06'E | F35: 千葉市 | G35: 1588
C36: 柏市 | D36: 35°51'N | E36: 139°58'E | F36: 柏市 | G36: 1575
C37: 銚子市 | D37: 35°44'N | E37: 140°52'E | F37: 銚子市 | G37: 1576
B38: 東京都 | C38: 千代田区 | D38: 35°45'N | E38: 139°45'E | F38: 千代田区 | G38: 1423
C39: 杉並区 | D39: 35°41'N | E39: 139°38'E | F39: 杉並区 | G39: 1577
C40: 調布市 | D40: 35°38'N | E40: 139°32'E | F40: 調布市 | G40: 1578
C41: 八王子市 | D41: 35°39'N | E41: 139°07'E | F41: 八王子市 | G41: 1578
B42: 神奈川県 | C42: 横浜市 | D42: 35°26'N | E42: 139°39'E | F42: 横浜市 | G42: 1513
C43: 横須賀市 | D43: 35°16'N | E43: 139°40'E | F43: 横須賀市 | G43: 1583
C44: 小田原市 | D44: 35°15'N | E44: 139°09'E | F44: 小田原市 | G44: 1583
B45: 山梨県 | C45: 甲府市 | D45: 35°40'N | E45: 138°34'E | F45: 甲府市 | G45: 1655
C46: 富士吉田市 | D46: 35°29'N | E46: 138°48'E | F46: 富士吉田市 | G46: 1580
B47: 新潟県 | C47: 新潟市 | D47: 37°55'N | E47: 139°03'E | F47: 新潟市 | G47: 1449
C48: 上越市 | D48: 37°08'N | E48: 138°14'E | F48: 上越市 | G48: 1555
B49: 長野県 | C49: 長野市 | D49: 36°39'N | E49: 138°12'E | F49: 長野市 | G49: 1532
C50: 松本市 | D50: 36°14'N | E50: 137°58'E | F50: 松本市 | G50: 1569
C51: 飯田市 | D51: 35°30'N | E51: 137°49'E | F51: 飯田市 | G51: 1580
F52: － | G52: 0
B53: 富山県 | C53: 富山市 | D53: 36°42'N | E53: 137°13'E | F53: 富山市 | G53: 1419
C54: 氷見市 | D54: 36°51'N | E54: 136°59'E | F54: 氷見市 | G54: 1560
B55: 石川県 | C55: 金沢市 | D55: 36°34'N | E55: 136°39'E | F55: 金沢市 | G55: 1432
C56: 輪島市 | D56: 37°23'N | E56: 136°54'E | F56: 輪島市 | G56: 1551
B57: 福井県 | C57: 福井市 | D57: 36°04'N | E57: 136°13'E | F57: 福井市 | G57: 1441
C58: 小浜市 | D58: 35°29'N | E58: 135°44'E | F58: 小浜市 | G58: 1580
B59: 静岡県 | C59: 静岡市 | D59: 34°58'N | E59: 138°23'E | F59: 静岡市 | G59: 1603
C60: 浜松市 | D60: 35°06'N | E60: 138°55'E | F60: 浜松市 | G60: 1586
C61: 三島市 | D61: 34°42'N | E61: 137°43'E | F61: 三島市 | G61: 1591
B62: 愛知県 | C62: 名古屋市 | D62: 35°11'N | E62: 136°54'E | F62: 名古屋市 | G62: 1580
C63: 豊橋市 | D63: 34°45'N | E63: 137°23'E | F63: 豊橋市 | G63: 1590
C64: 半田市 | D64: 34°53'N | E64: 136°56'E | F64: 半田市 | G64: 1586
B65: 岐阜県 | C65: 岐阜市 | D65: 35°25'N | E65: 136°46'E | F65: 岐阜市 | G65: 1527
C66: 大垣市 | D66: 35°21'N | E66: 136°36'E | F66: 大垣市 | G66: 1582
C67: 高山市 | D67: 36°08'N | E67: 137°15'E | F67: 高山市 | G67: 1570
B68: 三重県 | C68: 津市 | D68: 34°43'N | E68: 136°30'E | F68: 津市 | G68: 1521
C69: 四日市市 | D69: 34°57'N | E69: 136°37'E | F69: 四日市市 | G69: 1588
F70: － | G70: 0
B71: 滋賀県 | C71: 彦根市 | D71: 35°16'N | E71: 136°15'E | F71: 彦根市 | G71: 1472
C72: 長浜市 | D72: 35°22'N | E72: 136°16'E | F72: 長浜市 | G72: 1582
B73: 京都府 | C73: 京都市 | D73: 35°00'N | E73: 135°46'E | F73: 京都市 | G73: 1497
C74: 舞鶴市 | D74: 35°29'N | E74: 135°23'E | F74: 舞鶴市 | G74: 1580
B75: 奈良県 | C75: 奈良市 | D75: 34°41'N | E75: 135°48'E | F75: 奈良市 | G75: 1469
C76: 五條市 | D76: 34°20'N | E76: 135°41'E | F76: 五条市 | G76: 1596
B77: 大阪府 | C77: 大阪市 | D77: 34°41'N | E77: 135°31'E | F77: 大阪市 | G77: 1523
C78: 茨木市 | D78: 34°48'N | E78: 135°34'E | F78: 茨木市 | G78: 1590
C79: 堺市 | D79: 34°35'N | E79: 135°29'E | F79: 堺市 | G79: 1593
B80: 和歌山県 | C80: 和歌山市 | D80: 34°14'N | E80: 135°10'E | F80: 和歌山市 | G80: 1517
C81: 新宮市 | D81: 33°43'N | E81: 135°59'E | F81: 新宮市 | G81: 1604
B82: 兵庫県 | C82: 神戸市 | D82: 34°41'N | E82: 135°12'E | F82: 神戸市 | G82: 1553
C83: 姫路市 | D83: 34°49'N | E83: 134°41'E | F83: 姫路市 | G83: 1590
C84: 篠山市 | D84: 35°04'N | E84: 135°13'E | F84: 篠山市 | G84: 1586
F85: － | G85: 0
B86: 岡山県 | C86: 岡山市 | D86: 34°39'N | E86: 133°55'E | F86: 岡山市 | G86: 1592
C87: 津山市 | D87: 35°04'N | E87: 134°00'E | F87: 津山市 | G87: 1586
B88: 広島県 | C88: 広島市 | D88: 34°23'N | E88: 132°27'E | F88: 広島市 | G88: 1577
C89: 三次市 | D89: 34°48'N | E89: 132°51'E | F89: 三次市 | G89: 1590
B90: 山口県 | C90: 山口市 | D90: 34°11'N | E90: 131°28'E | F90: 山口市 | G90: 1613
C91: 岩国市 | D91: 34°10'N | E91: 132°13'E | F91: 岩国市 | G91: 1598
C92: 下関市 | D92: 33°57'N | E92: 130°56'E | F92: 下関市 | G92: 1601
B93: 鳥取県 | C93: 鳥取市 | D93: 35°29'N | E93: 134°14'E | F93: 鳥取市 | G93: 1553
C94: 米子市 | D94: 35°25'N | E94: 133°21'E | F94: 米子市 | G94: 1581
B95: 島根県 | C95: 松江市 | D95: 35°28'N | E95: 133°03'E | F95: 松江市 | G95: 1588
C96: 益田市 | D96: 34°40'N | E96: 131°50'E | F96: 益田市 | G96: 1592
B97: 徳島県 | C97: 徳島市 | D97: 34°04'N | E97: 134°33'E | F97: 徳島市 | G97: 1610
C98: 阿南市 | D98: 33°55'N | E98: 134°39'E | F98: 阿南市 | G98: 1602
B99: 香川県 | C99: 高松市 | D99: 34°21'N | E99: 134°03'E | F99: 高松市 | G99: 1588
C100: 丸亀市 | D100: 34°17'N | E100: 133°47'E | F100: 丸亀市 | G100: 1597
B101: 愛媛県 | C101: 松山市 | D101: 33°50'N | E101: 132°46'E | F101: 松山市 | G101: 1603
C102: 新居浜市 | D102: 33°57'N | E102: 133°16'E | F102: 新居浜市 | G102: 1601
B103: 高知県 | C103: 高知市 | D103: 33°34'N | E103: 133°32'E | F103: 高知市 | G103: 1633
C104: 土佐清水市 | D104: 32°46'N | E104: 132°57'E | F104: 土佐清水市 | G104: 1616
F105: － | G105: 0
B106: 福岡県 | C106: 福岡市 | D106: 33°35'N | E106: 130°24'E | F106: 福岡市 | G106: 1606
C107: 北九州市 | D107: 33°53'N | E107: 130°52'E | F107: 北九州市 | G107: 1602
C108: 飯塚市 | D108: 33°38'N | E108: 130°41'E | F108: 飯塚市 | G108: 1606
B109: 佐賀県 | C109: 佐賀市 | D109: 33°16'N | E109: 130°18'E | F109: 佐賀市 | G109: 1610
C110: 唐津市 | D110: 33°26'N | E110: 129°58'E | F110: 唐津市 | G110: 1608
B111: 長崎県 | C111: 長崎市 | D111: 32°45'N | E111: 129°53'E | F111: 長崎市 | G111: 1617
C112: 佐世保市 | D112: 33°10'N | E112: 129°42'E | F112: 佐世保市 | G112: 1611
B113: 大分県 | C113: 大分市 | D113: 33°14'N | E113: 131°37'E | F113: 大分市 | G113: 1611
C114: 竹田市 | D114: 32°58'N | E114: 131°24'E | F114: 竹田市 | G114: 1614
B115: 熊本県 | C115: 熊本市 | D115: 32°48'N | E115: 130°42'E | F115: 熊本市 | G115: 1616
C116: 人吉市 | D116: 32°12'N | E116: 130°45'E | F116: 人吉市 | G116: 1623
B117: 宮崎県 | C117: 宮崎市 | D117: 31°54'N | E117: 131°25'E | F117: 宮崎市 | G117: 1635
C118: 延岡市 | D118: 32°35'N | E118: 131°40'E | F118: 延岡市 | G118: 1619
B119: 鹿児島県 | C119: 鹿児島市 | D119: 31°36'N | E119: 130°33'E | F119: 鹿児島市 | G119: 1604
C120: 指宿市 | D120: 31°14'N | E120: 130°18'E | F120: 指宿市 | G120: 1634
C121: 名瀬市 | D121: 28°22'N | E121: 129°29'E | F121: 名瀬市 | G121: 1663
B122: 沖縄県 | C122: 那覇市 | D122: 26°13'N | E122: 127°41'E | F122: 那覇市 | G122: 1680
C123: 石垣市 | D123: 24°20'N | E123: 124°69'E | F123: 石垣市 | G123: 1691

Sheet 入力ｼｰﾄ
A2: ［入力シート］ | B2: ＜発電規模＞
B3: モジュール最大出力 | D3: 250 | E3: w | F3: ← | G3: モジュールの最大出力を入力して下さい。
A4: 顧客名 | B4: 設置枚数 | D4: 100 | E4: 枚 | F4: ← | G4: 設置するモジュールの枚数を入力して下さい。
A5: おなまえ | B5: システム容量 | D5: =D3*D4/1000 -> 25 | E5: kWh
B6: 年間１Kwの発電係数 | D6: 1250 | E6: kWh／年 | G6: 発電係数は、メーカー実績に基いて算出した数値です。入力する必要はありません。
B7: 想定年間発電量 | D7: =D6*D5 -> 31250 | E7: kWh／年
B8: 現買電単価 | D8: 0 | E8: 円／kWh
B9: 売電単価（税抜） | D9: 32 | E9: 円／kWh | F9: ← | G9: 売電単価を入力して下さい。
B10: 上記単価での売電期間 | D10: 20 | E10: 年間
B12: ＜設備投資＞
B13: システム価格 1kwh= | C13: 373000 | D13: =C13*D5 -> 9325000 | E13: 円(税抜) | F13: ← | G13: システム価格を入力して下さい
B14: 投資額 | D14: =D13*(1+D26) -> 10071000 | E14: 円(税込)
B15: リース | D15: なし
C16: 料率 | D16: 1 | E16: ％
C17: リース期間 | D17: 15 | E17: 年
C18: 月額リース料 | D18: =D13*D16/100 -> 93250 | E18: 年
C19: リース総額 | D19: =D18*12*D17 -> 16785000 | E19: 円
B20: ＜その他諸条件＞
B21: 性能低下率 | D21: 99.75 | E21: ％／年間
B22: 固定資産税率（償却資産） | D22: 1.4 | E22: ％
B23: 耐用年数 | D23: 17 | E23: 年 | J23: 印刷ボタンを有効にするには、上部のセキュリティー警告のマクロを 有効にする必要があります。
B24: 減価残存率 前年中取得 | D24: =VLOOKUP(D23,B50:E57,3,FALSE) -> 0.936 | J24: 印刷ボタンが使えない場合はシートを「プレゼンシート」に切替えて印刷して下さい。
B25: 減価残存率 前年前取得 | D25: =VLOOKUP(D23,B50:E57,4,FALSE) -> 0.873
B26: 消費税率 | D26: 0.08 | E26: ％ | F26: ← | G26: 消費税率を入力して下さい。
B27: 特別償却適用 | D27: あり | E27: 30
B28: 償却方法 | D28: 定率法
B29: 償却期間 | D29: 17 | E29: 年
B30: 償却率 | D30: =IF(D28="定率法",VLOOKUP(D29,B38:D45,3,FALSE),VLOOKUP(D29,B38:D45,2,FALSE)) -> 0.147
B31: 動産保険料率 | D31: 0 | E31: ％／年間
B32: 事業税 | D32: 0 | E32: ％／年間 | G32: 株式会社 ジャパンゲート
B33: メンテナンス費 | D33: 0.2 | E33: ％／年間 | G33: 〒822-0022 福岡県直方市知古771-9
B34: 法人税率 | D34: 0 | E34: ％ | G34: TEL 0949-28-8545 / FAX 0949-28-8546
B36: 減価償却
B37: 償却期間 | C37: 定額法・リース | D37: 定率法 | E37: 保証率
B38: 10 | C38: 0.1 | D38: 0.25 | E38: 0.04448
B39: 11 | C39: 0.091 | D39: 0.227 | E39: 0.04123
B40: 12 | C40: 0.084 | D40: 0.208 | E40: 0.0387
B41: 13 | C41: 0.077 | D41: 0.192 | E41: 0.03633
B42: 14 | C42: 0.072 | D42: 0.179 | E42: 0.03389
B43: 15 | C43: 0.067 | D43: 0.167 | E43: 0.03217
B44: 16 | C44: 0.063 | D44: 0.156 | E44: 0.03063
B45: 17 | C45: 0.059 | D45: 0.147 | E45: 0.02905
B46: 償却資産税 減価残存率表
B47: 耐用年数 | C47: 減価率 | D47: 減価残存率
D48: 前年中取得 | E48: 前年前取得
C49: ｒ | D49: １－ｒ／２ | E49: １－ｒ
B50: 10 | C50: 0.206 | D50: 0.897 | E50: 0.794
B51: 11 | C51: 0.189 | D51: 0.905 | E51: 0.811
B52: 12 | C52: 0.175 | D52: 0.912 | E52: 0.825
B53: 13 | C53: 0.162 | D53: 0.919 | E53: 0.838
B54: 14 | C54: 0.152 | D54: 0.924 | E54: 0.848
B55: 15 | C55: 0.142 | D55: 0.929 | E55: 0.858
B56: 16 | C56: 0.134 | D56: 0.933 | E56: 0.866
B57: 17 | C57: 0.127 | D57: 0.936 | E57: 0.873

Sheet 金利計算ｼｰﾄ (hidden)
A1: 【金利計算】
A3: 利率 | B3: =入力ｼｰﾄ!#REF!/100 ->  | C3: =入力ｼｰﾄ!#REF!/100 ->  | D3: =入力ｼｰﾄ!#REF!/100 ->  | E3: =入力ｼｰﾄ!#REF!/100 ->  | F3: =入力ｼｰﾄ!#REF!/100 ->  | G3: =入力ｼｰﾄ!#REF!/100 ->  | H3: =入力ｼｰﾄ!#REF!/100 ->  | I3: =入力ｼｰﾄ!#REF!/100 ->  | J3: =入力ｼｰﾄ!#REF!/100 ->  | K3: =入力ｼｰﾄ!#REF!/100 ->  | L3: =入力ｼｰﾄ!#REF!/100 ->  | M3: =入力ｼｰﾄ!#REF!/100 ->  | N3: =入力ｼｰﾄ!#REF!/100 ->  | O3: =入力ｼｰﾄ!#REF!/100 ->  | P3: =入力ｼｰﾄ!#REF!/100 ->  | Q3: =入力ｼｰﾄ!#REF!/100 ->  | R3: =入力ｼｰﾄ!#REF!/100 ->  | S3: =入力ｼｰﾄ!#REF!/100 ->  | T3: =入力ｼｰﾄ!#REF!/100 ->  | U3: =入力ｼｰﾄ!#REF!/100 ->  | V3: =入力ｼｰﾄ!#REF!/100 ->  | W3: =入力ｼｰﾄ!#REF!/100 ->  | X3: =入力ｼｰﾄ!#REF!/100 ->  | Y3: =入力ｼｰﾄ!#REF!/100 ->  | Z3: =入力ｼｰﾄ!#REF!/100 ->  | AA3: =入力ｼｰﾄ!#REF!/100 ->  | AB3: =入力ｼｰﾄ!#REF!/100 ->  | AC3: =入力ｼｰﾄ!#REF!/100 ->  | AD3: =入力ｼｰﾄ!#REF!/100 ->  | AE3: =入力ｼｰﾄ!#REF!/100 ->  | AF3: =入力ｼｰﾄ!#REF!/100 ->  | AG3: =入力ｼｰﾄ!#REF!/100 ->  | AH3: =入力ｼｰﾄ!#REF!/100 ->  | AI3: =入力ｼｰﾄ!#REF!/100 ->  | AJ3: =入力ｼｰﾄ!#REF!/100 ->  | AK3: =入力ｼｰﾄ!#REF!/100 ->  | AL3: =入力ｼｰﾄ!#REF!/100 ->  | AM3: =入力ｼｰﾄ!#REF!/100 ->  | AN3: =入力ｼｰﾄ!#REF!/100 ->  | AO3: =入力ｼｰﾄ!#REF!/100 ->  | AP3: =入力ｼｰﾄ!#REF!/100 ->  | AQ3: =入力ｼｰﾄ!#REF!/100 ->  | AR3: =入力ｼｰﾄ!#REF!/100 ->  | AS3: =入力ｼｰﾄ!#REF!/100 ->  | AT3: =入力ｼｰﾄ!#REF!/100 ->  | AU3: =入力ｼｰﾄ!#REF!/100 ->  | AV3: =入力ｼｰﾄ!#REF!/100 ->  | AW3: =入力ｼｰﾄ!#REF!/100 ->  | AX3: =入力ｼｰﾄ!#REF!/100 ->  | AY3: =入力ｼｰﾄ!#REF!/100 ->  | AZ3: =入力ｼｰﾄ!#REF!/100 ->  | BA3: =入力ｼｰﾄ!#REF!/100 ->  | BB3: =入力ｼｰﾄ!#REF!/100 ->  | BC3: =入力ｼｰﾄ!#REF!/100 ->  | BD3: =入力ｼｰﾄ!#REF!/100 ->  | BE3: =入力ｼｰﾄ!#REF!/100 ->  | BF3: =入力ｼｰﾄ!#REF!/100 ->  | BG3: =入力ｼｰﾄ!#REF!/100 ->  | BH3: =入力ｼｰﾄ!#REF!/100 ->  | BI3: =入力ｼｰﾄ!#REF!/100 ->  | BJ3: =入力ｼｰﾄ!#REF!/100 ->  | BK3: =入力ｼｰﾄ!#REF!/100 ->  | BL3: =入力ｼｰﾄ!#REF!/100 ->  | BM3: =入力ｼｰﾄ!#REF!/100 ->  | BN3: =入力ｼｰﾄ!#REF!/100 ->  | BO3: =入力ｼｰﾄ!#REF!/100 ->  | BP3: =入力ｼｰﾄ!#REF!/100 ->  | BQ3: =入力ｼｰﾄ!#REF!/100 ->  | BR3: =入力ｼｰﾄ!#REF!/100 ->  | BS3: =入力ｼｰﾄ!#REF!/100 ->  | BT3: =入力ｼｰﾄ!#REF!/100 ->  | BU3: =入力ｼｰﾄ!#REF!/100 ->  | BV3: =入力ｼｰﾄ!#REF!/100 ->  | BW3: =入力ｼｰﾄ!#REF!/100 ->  | BX3: =入力ｼｰﾄ!#REF!/100 ->  | BY3: =入力ｼｰﾄ!#REF!/100 ->  | BZ3: =入力ｼｰﾄ!#REF!/100 ->  | CA3: =入力ｼｰﾄ!#REF!/100 ->  | CB3: =入力ｼｰﾄ!#REF!/100 ->  | CC3: =入力ｼｰﾄ!#REF!/100 ->  | CD3: =入力ｼｰﾄ!#REF!/100 ->  | CE3: =入力ｼｰﾄ!#REF!/100 ->  | CF3: =入力ｼｰﾄ!#REF!/100 ->  | CG3: =入力ｼｰﾄ!#REF!/100 ->  | CH3: =入力ｼｰﾄ!#REF!/100 ->  | CI3: =入力ｼｰﾄ!#REF!/100 ->  | CJ3: =入力ｼｰﾄ!#REF!/100 ->  | CK3: =入力ｼｰﾄ!#REF!/100 ->  | CL3: =入力ｼｰﾄ!#REF!/100 ->  | CM3: =入力ｼｰﾄ!#REF!/100 ->  | CN3: =入力ｼｰﾄ!#REF!/100 ->  | CO3: =入力ｼｰﾄ!#REF!/100 ->  | CP3: =入力ｼｰﾄ!#REF!/100 ->  | CQ3: =入力ｼｰﾄ!#REF!/100 ->  | CR3: =入力ｼｰﾄ!#REF!/100 ->  | CS3: =入力ｼｰﾄ!#REF!/100 ->  | CT3: =入力ｼｰﾄ!#REF!/100 ->  | CU3: =入力ｼｰﾄ!#REF!/100 ->  | CV3: =入力ｼｰﾄ!#REF!/100 ->  | CW3: =入力ｼｰﾄ!#REF!/100 ->  | CX3: =入力ｼｰﾄ!#REF!/100 ->  | CY3: =入力ｼｰﾄ!#REF!/100 ->  | CZ3: =入力ｼｰﾄ!#REF!/100 ->  | DA3: =入力ｼｰﾄ!#REF!/100 ->  | DB3: =入力ｼｰﾄ!#REF!/100 ->  | DC3: =入力ｼｰﾄ!#REF!/100 ->  | DD3: =入力ｼｰﾄ!#REF!/100 ->  | DE3: =入力ｼｰﾄ!#REF!/100 ->  | DF3: =入力ｼｰﾄ!#REF!/100 ->  | DG3: =入力ｼｰﾄ!#REF!/100 ->  | DH3: =入力ｼｰﾄ!#REF!/100 ->  | DI3: =入力ｼｰﾄ!#REF!/100 ->  | DJ3: =入力ｼｰﾄ!#REF!/100 ->  | DK3: =入力ｼｰﾄ!#REF!/100 ->  | DL3: =入力ｼｰﾄ!#REF!/100 ->  | DM3: =入力ｼｰﾄ!#REF!/100 ->  | DN3: =入力ｼｰﾄ!#REF!/100 ->  | DO3: =入力ｼｰﾄ!#REF!/100 ->  | DP3: =入力ｼｰﾄ!#REF!/100 ->  | DQ3: =入力ｼｰﾄ!#REF!/100 ->  | DR3: =入力ｼｰﾄ!#REF!/100 ->  | DS3: =入力ｼｰﾄ!#REF!/100 ->  | DT3: =入力ｼｰﾄ!#REF!/100 ->  | DU3: =入力ｼｰﾄ!#REF!/100 ->  | DV3: =入力ｼｰﾄ!#REF!/100 ->  | DW3: =入力ｼｰﾄ!#REF!/100 ->  | DX3: =入力ｼｰﾄ!#REF!/100 ->  | DY3: =入力ｼｰﾄ!#REF!/100 ->  | DZ3: =入力ｼｰﾄ!#REF!/100 ->  | EA3: =入力ｼｰﾄ!#REF!/100 ->  | EB3: =入力ｼｰﾄ!#REF!/100 ->  | EC3: =入力ｼｰﾄ!#REF!/100 ->  | ED3: =入力ｼｰﾄ!#REF!/100 ->  | EE3: =入力ｼｰﾄ!#REF!/100 ->  | EF3: =入力ｼｰﾄ!#REF!/100 ->  | EG3: =入力ｼｰﾄ!#REF!/100 ->  | EH3: =入力ｼｰﾄ!#REF!/100 ->  | EI3: =入力ｼｰﾄ!#REF!/100 ->  | EJ3: =入力ｼｰﾄ!#REF!/100 ->  | EK3: =入力ｼｰﾄ!#REF!/100 ->  | EL3: =入力ｼｰﾄ!#REF!/100 ->  | EM3: =入力ｼｰﾄ!#REF!/100 ->  | EN3: =入力ｼｰﾄ!#REF!/100 ->  | EO3: =入力ｼｰﾄ!#REF!/100 ->  | EP3: =入力ｼｰﾄ!#REF!/100 ->  | EQ3: =入力ｼｰﾄ!#REF!/100 ->  | ER3: =入力ｼｰﾄ!#REF!/100 ->  | ES3: =入力ｼｰﾄ!#REF!/100 ->  | ET3: =入力ｼｰﾄ!#REF!/100 ->  | EU3: =入力ｼｰﾄ!#REF!/100 ->  | EV3: =入力ｼｰﾄ!#REF!/100 ->  | EW3: =入力ｼｰﾄ!#REF!/100 ->  | EX3: =入力ｼｰﾄ!#REF!/100 ->  | EY3: =入力ｼｰﾄ!#REF!/100 ->  | EZ3: =入力ｼｰﾄ!#REF!/100 ->  | FA3: =入力ｼｰﾄ!#REF!/100 ->  | FB3: =入力ｼｰﾄ!#REF!/100 ->  | FC3: =入力ｼｰﾄ!#REF!/100 ->  | FD3: =入力ｼｰﾄ!#REF!/100 ->  | FE3: =入力ｼｰﾄ!#REF!/100 ->  | FF3: =入力ｼｰﾄ!#REF!/100 ->  | FG3: =入力ｼｰﾄ!#REF!/100 ->  | FH3: =入力ｼｰﾄ!#REF!/100 ->  | FI3: =入力ｼｰﾄ!#REF!/100 ->  | FJ3: =入力ｼｰﾄ!#REF!/100 ->  | FK3: =入力ｼｰﾄ!#REF!/100 ->  | FL3: =入力ｼｰﾄ!#REF!/100 ->  | FM3: =入力ｼｰﾄ!#REF!/100 ->  | FN3: =入力ｼｰﾄ!#REF!/100 ->  | FO3: =入力ｼｰﾄ!#REF!/100 ->  | FP3: =入力ｼｰﾄ!#REF!/100 ->  | FQ3: =入力ｼｰﾄ!#REF!/100 ->  | FR3: =入力ｼｰﾄ!#REF!/100 ->  | FS3: =入力ｼｰﾄ!#REF!/100 ->  | FT3: =入力ｼｰﾄ!#REF!/100 ->  | FU3: =入力ｼｰﾄ!#REF!/100 ->  | FV3: =入力ｼｰﾄ!#REF!/100 ->  | FW3: =入力ｼｰﾄ!#REF!/100 ->  | FX3: =入力ｼｰﾄ!#REF!/100 ->  | FY3: =入力ｼｰﾄ!#REF!/100 ->  | FZ3: =入力ｼｰﾄ!#REF!/100 ->  | GA3: =入力ｼｰﾄ!#REF!/100 ->  | GB3: =入力ｼｰﾄ!#REF!/100 ->  | GC3: =入力ｼｰﾄ!#REF!/100 ->  | GD3: =入力ｼｰﾄ!#REF!/100 ->  | GE3: =入力ｼｰﾄ!#REF!/100 ->  | GF3: =入力ｼｰﾄ!#REF!/100 ->  | GG3: =入力ｼｰﾄ!#REF!/100 ->  | GH3: =入力ｼｰﾄ!#REF!/100 ->  | GI3: =入力ｼｰﾄ!#REF!/100 ->  | GJ3: =入力ｼｰﾄ!#REF!/100 ->  | GK3: =入力ｼｰﾄ!#REF!/100 ->  | GL3: =入力ｼｰﾄ!#REF!/100 ->  | GM3: =入力ｼｰﾄ!#REF!/100 ->  | GN3: =入力ｼｰﾄ!#REF!/100 ->  | GO3: =入力ｼｰﾄ!#REF!/100 ->  | GP3: =入力ｼｰﾄ!#REF!/100 ->  | GQ3: =入力ｼｰﾄ!#REF!/100 ->  | GR3: =入力ｼｰﾄ!#REF!/100 ->  | GS3: =入力ｼｰﾄ!#REF!/100 ->  | GT3: =入力ｼｰﾄ!#REF!/100 ->  | GU3: =入力ｼｰﾄ!#REF!/100 ->  | GV3: =入力ｼｰﾄ!#REF!/100 ->  | GW3: =入力ｼｰﾄ!#REF!/100 ->  | GX3: =入力ｼｰﾄ!#REF!/100 ->  | GY3: =入力ｼｰﾄ!#REF!/100 ->  | GZ3: =入力ｼｰﾄ!#REF!/100 ->  | HA3: =入力ｼｰﾄ!#REF!/100 ->  | HB3: =入力ｼｰﾄ!#REF!/100 ->  | HC3: =入力ｼｰﾄ!#REF!/100 ->  | HD3: =入力ｼｰﾄ!#REF!/100 ->  | HE3: =入力ｼｰﾄ!#REF!/100 ->  | HF3: =入力ｼｰﾄ!#REF!/100 ->  | HG3: =入力ｼｰﾄ!#REF!/100 ->  | HH3: =入力ｼｰﾄ!#REF!/100 ->  | HI3: =入力ｼｰﾄ!#REF!/100 ->  | HJ3: =入力ｼｰﾄ!#REF!/100 ->  | HK3: =入力ｼｰﾄ!#REF!/100 ->  | HL3: =入力ｼｰﾄ!#REF!/100 ->  | HM3: =入力ｼｰﾄ!#REF!/100 ->  | HN3: =入力ｼｰﾄ!#REF!/100 ->  | HO3: =入力ｼｰﾄ!#REF!/100 ->  | HP3: =入力ｼｰﾄ!#REF!/100 ->  | HQ3: =入力ｼｰﾄ!#REF!/100 ->  | HR3: =入力ｼｰﾄ!#REF!/100 ->  | HS3: =入力ｼｰﾄ!#REF!/100 ->  | HT3: =入力ｼｰﾄ!#REF!/100 ->  | HU3: =入力ｼｰﾄ!#REF!/100 ->  | HV3: =入力ｼｰﾄ!#REF!/100 ->  | HW3: =入力ｼｰﾄ!#REF!/100 ->  | HX3: =入力ｼｰﾄ!#REF!/100 ->  | HY3: =入力ｼｰﾄ!#REF!/100 ->  | HZ3: =入力ｼｰﾄ!#REF!/100 ->  | IA3: =入力ｼｰﾄ!#REF!/100 ->  | IB3: =入力ｼｰﾄ!#REF!/100 ->  | IC3: =入力ｼｰﾄ!#REF!/100 ->  | ID3: =入力ｼｰﾄ!#REF!/100 ->  | IE3: =入力ｼｰﾄ!#REF!/100 ->  | IF3: =入力ｼｰﾄ!#REF!/100 ->  | IG3: =入力ｼｰﾄ!#REF!/100 -> 
A4: 回数 | B4: 1 | C4: 2 | D4: 3 | E4: 4 | F4: 5 | G4: 6 | H4: 7 | I4: 8 | J4: 9 | K4: 10 | L4: 11 | M4: 12 | N4: 13 | O4: 14 | P4: 15 | Q4: 16 | R4: 17 | S4: 18 | T4: 19 | U4: 20 | V4: 21 | W4: 22 | X4: 23 | Y4: 24 | Z4: 25 | AA4: 26 | AB4: 27 | AC4: 28 | AD4: 29 | AE4: 30 | AF4: 31 | AG4: 32 | AH4: 33 | AI4: 34 | AJ4: 35 | AK4: 36 | AL4: 37 | AM4: 38 | AN4: 39 | AO4: 40 | AP4: 41 | AQ4: 42 | AR4: 43 | AS4: 44 | AT4: 45 | AU4: 46 | AV4: 47 | AW4: 48 | AX4: 49 | AY4: 50 | AZ4: 51 | BA4: 52 | BB4: 53 | BC4: 54 | BD4: 55 | BE4: 56 | BF4: 57 | BG4: 58 | BH4: 59 | BI4: 60 | BJ4: 61 | BK4: 62 | BL4: 63 | BM4: 64 | BN4: 65 | BO4: 66 | BP4: 67 | BQ4: 68 | BR4: 69 | BS4: 70 | BT4: 71 | BU4: 72 | BV4: 73 | BW4: 74 | BX4: 75 | BY4: 76 | BZ4: 77 | CA4: 78 | CB4: 79 | CC4: 80 | CD4: 81 | CE4: 82 | CF4: 83 | CG4: 84 | CH4: 85 | CI4: 86 | CJ4: 87 | CK4: 88 | CL4: 89 | CM4: 90 | CN4: 91 | CO4: 92 | CP4: 93 | CQ4: 94 | CR4: 95 | CS4: 96 | CT4: 97 | CU4: 98 | CV4: 99 | CW4: 100 | CX4: 101 | CY4: 102 | CZ4: 103 | DA4: 104 | DB4: 105 | DC4: 106 | DD4: 107 | DE4: 108 | DF4: 109 | DG4: 110 | DH4: 111 | DI4: 112 | DJ4: 113 | DK4: 114 | DL4: 115 | DM4: 116 | DN4: 117 | DO4: 118 | DP4: 119 | DQ4: 120 | DR4: 121 | DS4: 122 | DT4: 123 | DU4: 124 | DV4: 125 | DW4: 126 | DX4: 127 | DY4: 128 | DZ4: 129 | EA4: 130 | EB4: 131 | EC4: 132 | ED4: 133 | EE4: 134 | EF4: 135 | EG4: 136 | EH4: 137 | EI4: 138 | EJ4: 139 | EK4: 140 | EL4: 141 | EM4: 142 | EN4: 143 | EO4: 144 | EP4: 145 | EQ4: 146 | ER4: 147 | ES4: 148 | ET4: 149 | EU4: 150 | EV4: 151 | EW4: 152 | EX4: 153 | EY4: 154 | EZ4: 155 | FA4: 156 | FB4: 157 | FC4: 158 | FD4: 159 | FE4: 160 | FF4: 161 | FG4: 162 | FH4: 163 | FI4: 164 | FJ4: 165 | FK4: 166 | FL4: 167 | FM4: 168 | FN4: 169 | FO4: 170 | FP4: 171 | FQ4: 172 | FR4: 173 | FS4: 174 | FT4: 175 | FU4: 176 | FV4: 177 | FW4: 178 | FX4: 179 | FY4: 180 | FZ4: 181 | GA4: 182 | GB4: 183 | GC4: 184 | GD4: 185 | GE4: 186 | GF4: 187 | GG4: 188 | GH4: 189 | GI4: 190 | GJ4: 191 | GK4: 192 | GL4: 193 | GM4: 194 | GN4: 195 | GO4: 196 | GP4: 197 | GQ4: 198 | GR4: 199 | GS4: 200 | GT4: 201 | GU4: 202 | GV4: 203 | GW4: 204 | GX4: 205 | GY4: 206 | GZ4: 207 | HA4: 208 | HB4: 209 | HC4: 210 | HD4: 211 | HE4: 212 | HF4: 213 | HG4: 214 | HH4: 215 | HI4: 216 | HJ4: 217 | HK4: 218 | HL4: 219 | HM4: 220 | HN4: 221 | HO4: 222 | HP4: 223 | HQ4: 224 | HR4: 225 | HS4: 226 | HT4: 227 | HU4: 228 | HV4: 229 | HW4: 230 | HX4: 231 | HY4: 232 | HZ4: 233 | IA4: 234 | IB4: 235 | IC4: 236 | ID4: 237 | IE4: 238 | IF4: 239 | IG4: 240
A5: 期間 | B5: =入力ｼｰﾄ!#REF! ->  | C5: =入力ｼｰﾄ!#REF! ->  | D5: =入力ｼｰﾄ!#REF! ->  | E5: =入力ｼｰﾄ!#REF! ->  | F5: =入力ｼｰﾄ!#REF! ->  | G5: =入力ｼｰﾄ!#REF! ->  | H5: =入力ｼｰﾄ!#REF! ->  | I5: =入力ｼｰﾄ!#REF! ->  | J5: =入力ｼｰﾄ!#REF! ->  | K5: =入力ｼｰﾄ!#REF! ->  | L5: =入力ｼｰﾄ!#REF! ->  | M5: =入力ｼｰﾄ!#REF! ->  | N5: =入力ｼｰﾄ!#REF! ->  | O5: =入力ｼｰﾄ!#REF! ->  | P5: =入力ｼｰﾄ!#REF! ->  | Q5: =入力ｼｰﾄ!#REF! ->  | R5: =入力ｼｰﾄ!#REF! ->  | S5: =入力ｼｰﾄ!#REF! ->  | T5: =入力ｼｰﾄ!#REF! ->  | U5: =入力ｼｰﾄ!#REF! ->  | V5: =入力ｼｰﾄ!#REF! ->  | W5: =入力ｼｰﾄ!#REF! ->  | X5: =入力ｼｰﾄ!#REF! ->  | Y5: =入力ｼｰﾄ!#REF! ->  | Z5: =入力ｼｰﾄ!#REF! ->  | AA5: =入力ｼｰﾄ!#REF! ->  | AB5: =入力ｼｰﾄ!#REF! ->  | AC5: =入力ｼｰﾄ!#REF! ->  | AD5: =入力ｼｰﾄ!#REF! ->  | AE5: =入力ｼｰﾄ!#REF! ->  | AF5: =入力ｼｰﾄ!#REF! ->  | AG5: =入力ｼｰﾄ!#REF! ->  | AH5: =入力ｼｰﾄ!#REF! ->  | AI5: =入力ｼｰﾄ!#REF! ->  | AJ5: =入力ｼｰﾄ!#REF! ->  | AK5: =入力ｼｰﾄ!#REF! ->  | AL5: =入力ｼｰﾄ!#REF! ->  | AM5: =入力ｼｰﾄ!#REF! ->  | AN5: =入力ｼｰﾄ!#REF! ->  | AO5: =入力ｼｰﾄ!#REF! ->  | AP5: =入力ｼｰﾄ!#REF! ->  | AQ5: =入力ｼｰﾄ!#REF! ->  | AR5: =入力ｼｰﾄ!#REF! ->  | AS5: =入力ｼｰﾄ!#REF! ->  | AT5: =入力ｼｰﾄ!#REF! ->  | AU5: =入力ｼｰﾄ!#REF! ->  | AV5: =入力ｼｰﾄ!#REF! ->  | AW5: =入力ｼｰﾄ!#REF! ->  | AX5: =入力ｼｰﾄ!#REF! ->  | AY5: =入力ｼｰﾄ!#REF! ->  | AZ5: =入力ｼｰﾄ!#REF! ->  | BA5: =入力ｼｰﾄ!#REF! ->  | BB5: =入力ｼｰﾄ!#REF! ->  | BC5: =入力ｼｰﾄ!#REF! ->  | BD5: =入力ｼｰﾄ!#REF! ->  | BE5: =入力ｼｰﾄ!#REF! ->  | BF5: =入力ｼｰﾄ!#REF! ->  | BG5: =入力ｼｰﾄ!#REF! ->  | BH5: =入力ｼｰﾄ!#REF! ->  | BI5: =入力ｼｰﾄ!#REF! ->  | BJ5: =入力ｼｰﾄ!#REF! ->  | BK5: =入力ｼｰﾄ!#REF! ->  | BL5: =入力ｼｰﾄ!#REF! ->  | BM5: =入力ｼｰﾄ!#REF! ->  | BN5: =入力ｼｰﾄ!#REF! ->  | BO5: =入力ｼｰﾄ!#REF! ->  | BP5: =入力ｼｰﾄ!#REF! ->  | BQ5: =入力ｼｰﾄ!#REF! ->  | BR5: =入力ｼｰﾄ!#REF! ->  | BS5: =入力ｼｰﾄ!#REF! ->  | BT5: =入力ｼｰﾄ!#REF! ->  | BU5: =入力ｼｰﾄ!#REF! ->  | BV5: =入力ｼｰﾄ!#REF! ->  | BW5: =入力ｼｰﾄ!#REF! ->  | BX5: =入力ｼｰﾄ!#REF! ->  | BY5: =入力ｼｰﾄ!#REF! ->  | BZ5: =入力ｼｰﾄ!#REF! ->  | CA5: =入力ｼｰﾄ!#REF! ->  | CB5: =入力ｼｰﾄ!#REF! ->  | CC5: =入力ｼｰﾄ!#REF! ->  | CD5: =入力ｼｰﾄ!#REF! ->  | CE5: =入力ｼｰﾄ!#REF! ->  | CF5: =入力ｼｰﾄ!#REF! ->  | CG5: =入力ｼｰﾄ!#REF! ->  | CH5: =入力ｼｰﾄ!#REF! ->  | CI5: =入力ｼｰﾄ!#REF! ->  | CJ5: =入力ｼｰﾄ!#REF! ->  | CK5: =入力ｼｰﾄ!#REF! ->  | CL5: =入力ｼｰﾄ!#REF! ->  | CM5: =入力ｼｰﾄ!#REF! ->  | CN5: =入力ｼｰﾄ!#REF! ->  | CO5: =入力ｼｰﾄ!#REF! ->  | CP5: =入力ｼｰﾄ!#REF! ->  | CQ5: =入力ｼｰﾄ!#REF! ->  | CR5: =入力ｼｰﾄ!#REF! ->  | CS5: =入力ｼｰﾄ!#REF! ->  | CT5: =入力ｼｰﾄ!#REF! ->  | CU5: =入力ｼｰﾄ!#REF! ->  | CV5: =入力ｼｰﾄ!#REF! ->  | CW5: =入力ｼｰﾄ!#REF! ->  | CX5: =入力ｼｰﾄ!#REF! ->  | CY5: =入力ｼｰﾄ!#REF! ->  | CZ5: =入力ｼｰﾄ!#REF! ->  | DA5: =入力ｼｰﾄ!#REF! ->  | DB5: =入力ｼｰﾄ!#REF! ->  | DC5: =入力ｼｰﾄ!#REF! ->  | DD5: =入力ｼｰﾄ!#REF! ->  | DE5: =入力ｼｰﾄ!#REF! ->  | DF5: =入力ｼｰﾄ!#REF! ->  | DG5: =入力ｼｰﾄ!#REF! ->  | DH5: =入力ｼｰﾄ!#REF! ->  | DI5: =入力ｼｰﾄ!#REF! ->  | DJ5: =入力ｼｰﾄ!#REF! ->  | DK5: =入力ｼｰﾄ!#REF! ->  | DL5: =入力ｼｰﾄ!#REF! ->  | DM5: =入力ｼｰﾄ!#REF! ->  | DN5: =入力ｼｰﾄ!#REF! ->  | DO5: =入力ｼｰﾄ!#REF! ->  | DP5: =入力ｼｰﾄ!#REF! ->  | DQ5: =入力ｼｰﾄ!#REF! ->  | DR5: =入力ｼｰﾄ!#REF! ->  | DS5: =入力ｼｰﾄ!#REF! ->  | DT5: =入力ｼｰﾄ!#REF! ->  | DU5: =入力ｼｰﾄ!#REF! ->  | DV5: =入力ｼｰﾄ!#REF! ->  | DW5: =入力ｼｰﾄ!#REF! ->  | DX5: =入力ｼｰﾄ!#REF! ->  | DY5: =入力ｼｰﾄ!#REF! ->  | DZ5: =入力ｼｰﾄ!#REF! ->  | EA5: =入力ｼｰﾄ!#REF! ->  | EB5: =入力ｼｰﾄ!#REF! ->  | EC5: =入力ｼｰﾄ!#REF! ->  | ED5: =入力ｼｰﾄ!#REF! ->  | EE5: =入力ｼｰﾄ!#REF! ->  | EF5: =入力ｼｰﾄ!#REF! ->  | EG5: =入力ｼｰﾄ!#REF! ->  | EH5: =入力ｼｰﾄ!#REF! ->  | EI5: =入力ｼｰﾄ!#REF! ->  | EJ5: =入力ｼｰﾄ!#REF! ->  | EK5: =入力ｼｰﾄ!#REF! ->  | EL5: =入力ｼｰﾄ!#REF! ->  | EM5: =入力ｼｰﾄ!#REF! ->  | EN5: =入力ｼｰﾄ!#REF! ->  | EO5: =入力ｼｰﾄ!#REF! ->  | EP5: =入力ｼｰﾄ!#REF! ->  | EQ5: =入力ｼｰﾄ!#REF! ->  | ER5: =入力ｼｰﾄ!#REF! ->  | ES5: =入力ｼｰﾄ!#REF! ->  | ET5: =入力ｼｰﾄ!#REF! ->  | EU5: =入力ｼｰﾄ!#REF! ->  | EV5: =入力ｼｰﾄ!#REF! ->  | EW5: =入力ｼｰﾄ!#REF! ->  | EX5: =入力ｼｰﾄ!#REF! ->  | EY5: =入力ｼｰﾄ!#REF! ->  | EZ5: =入力ｼｰﾄ!#REF! ->  | FA5: =入力ｼｰﾄ!#REF! ->  | FB5: =入力ｼｰﾄ!#REF! ->  | FC5: =入力ｼｰﾄ!#REF! ->  | FD5: =入力ｼｰﾄ!#REF! ->  | FE5: =入力ｼｰﾄ!#REF! ->  | FF5: =入力ｼｰﾄ!#REF! ->  | FG5: =入力ｼｰﾄ!#REF! ->  | FH5: =入力ｼｰﾄ!#REF! ->  | FI5: =入力ｼｰﾄ!#REF! ->  | FJ5: =入力ｼｰﾄ!#REF! ->  | FK5: =入力ｼｰﾄ!#REF! ->  | FL5: =入力ｼｰﾄ!#REF! ->  | FM5: =入力ｼｰﾄ!#REF! ->  | FN5: =入力ｼｰﾄ!#REF! ->  | FO5: =入力ｼｰﾄ!#REF! ->  | FP5: =入力ｼｰﾄ!#REF! ->  | FQ5: =入力ｼｰﾄ!#REF! ->  | FR5: =入力ｼｰﾄ!#REF! ->  | FS5: =入力ｼｰﾄ!#REF! ->  | FT5: =入力ｼｰﾄ!#REF! ->  | FU5: =入力ｼｰﾄ!#REF! ->  | FV5: =入力ｼｰﾄ!#REF! ->  | FW5: =入力ｼｰﾄ!#REF! ->  | FX5: =入力ｼｰﾄ!#REF! ->  | FY5: =入力ｼｰﾄ!#REF! ->  | FZ5: =入力ｼｰﾄ!#REF! ->  | GA5: =入力ｼｰﾄ!#REF! ->  | GB5: =入力ｼｰﾄ!#REF! ->  | GC5: =入力ｼｰﾄ!#REF! ->  | GD5: =入力ｼｰﾄ!#REF! ->  | GE5: =入力ｼｰﾄ!#REF! ->  | GF5: =入力ｼｰﾄ!#REF! ->  | GG5: =入力ｼｰﾄ!#REF! ->  | GH5: =入力ｼｰﾄ!#REF! ->  | GI5: =入力ｼｰﾄ!#REF! ->  | GJ5: =入力ｼｰﾄ!#REF! ->  | GK5: =入力ｼｰﾄ!#REF! ->  | GL5: =入力ｼｰﾄ!#REF! ->  | GM5: =入力ｼｰﾄ!#REF! ->  | GN5: =入力ｼｰﾄ!#REF! ->  | GO5: =入力ｼｰﾄ!#REF! ->  | GP5: =入力ｼｰﾄ!#REF! ->  | GQ5: =入力ｼｰﾄ!#REF! ->  | GR5: =入力ｼｰﾄ!#REF! ->  | GS5: =入力ｼｰﾄ!#REF! ->  | GT5: =入力ｼｰﾄ!#REF! ->  | GU5: =入力ｼｰﾄ!#REF! ->  | GV5: =入力ｼｰﾄ!#REF! ->  | GW5: =入力ｼｰﾄ!#REF! ->  | GX5: =入力ｼｰﾄ!#REF! ->  | GY5: =入力ｼｰﾄ!#REF! ->  | GZ5: =入力ｼｰﾄ!#REF! ->  | HA5: =入力ｼｰﾄ!#REF! ->  | HB5: =入力ｼｰﾄ!#REF! ->  | HC5: =入力ｼｰﾄ!#REF! ->  | HD5: =入力ｼｰﾄ!#REF! ->  | HE5: =入力ｼｰﾄ!#REF! ->  | HF5: =入力ｼｰﾄ!#REF! ->  | HG5: =入力ｼｰﾄ!#REF! ->  | HH5: =入力ｼｰﾄ!#REF! ->  | HI5: =入力ｼｰﾄ!#REF! ->  | HJ5: =入力ｼｰﾄ!#REF! ->  | HK5: =入力ｼｰﾄ!#REF! ->  | HL5: =入力ｼｰﾄ!#REF! ->  | HM5: =入力ｼｰﾄ!#REF! ->  | HN5: =入力ｼｰﾄ!#REF! ->  | HO5: =入力ｼｰﾄ!#REF! ->  | HP5: =入力ｼｰﾄ!#REF! ->  | HQ5: =入力ｼｰﾄ!#REF! ->  | HR5: =入力ｼｰﾄ!#REF! ->  | HS5: =入力ｼｰﾄ!#REF! ->  | HT5: =入力ｼｰﾄ!#REF! ->  | HU5: =入力ｼｰﾄ!#REF! ->  | HV5: =入力ｼｰﾄ!#REF! ->  | HW5: =入力ｼｰﾄ!#REF! ->  | HX5: =入力ｼｰﾄ!#REF! ->  | HY5: =入力ｼｰﾄ!#REF! ->  | HZ5: =入力ｼｰﾄ!#REF! ->  | IA5: =入力ｼｰﾄ!#REF! ->  | IB5: =入力ｼｰﾄ!#REF! ->  | IC5: =入力ｼｰﾄ!#REF! ->  | ID5: =入力ｼｰﾄ!#REF! ->  | IE5: =入力ｼｰﾄ!#REF! ->  | IF5: =入力ｼｰﾄ!#REF! ->  | IG5: =入力ｼｰﾄ!#REF! -> 
A6: 借入 | B6: =入力ｼｰﾄ!#REF! ->  | C6: =入力ｼｰﾄ!#REF! ->  | D6: =入力ｼｰﾄ!#REF! ->  | E6: =入力ｼｰﾄ!#REF! ->  | F6: =入力ｼｰﾄ!#REF! ->  | G6: =入力ｼｰﾄ!#REF! ->  | H6: =入力ｼｰﾄ!#REF! ->  | I6: =入力ｼｰﾄ!#REF! ->  | J6: =入力ｼｰﾄ!#REF! ->  | K6: =入力ｼｰﾄ!#REF! ->  | L6: =入力ｼｰﾄ!#REF! ->  | M6: =入力ｼｰﾄ!#REF! ->  | N6: =入力ｼｰﾄ!#REF! ->  | O6: =入力ｼｰﾄ!#REF! ->  | P6: =入力ｼｰﾄ!#REF! ->  | Q6: =入力ｼｰﾄ!#REF! ->  | R6: =入力ｼｰﾄ!#REF! ->  | S6: =入力ｼｰﾄ!#REF! ->  | T6: =入力ｼｰﾄ!#REF! ->  | U6: =入力ｼｰﾄ!#REF! ->  | V6: =入力ｼｰﾄ!#REF! ->  | W6: =入力ｼｰﾄ!#REF! ->  | X6: =入力ｼｰﾄ!#REF! ->  | Y6: =入力ｼｰﾄ!#REF! ->  | Z6: =入力ｼｰﾄ!#REF! ->  | AA6: =入力ｼｰﾄ!#REF! ->  | AB6: =入力ｼｰﾄ!#REF! ->  | AC6: =入力ｼｰﾄ!#REF! ->  | AD6: =入力ｼｰﾄ!#REF! ->  | AE6: =入力ｼｰﾄ!#REF! ->  | AF6: =入力ｼｰﾄ!#REF! ->  | AG6: =入力ｼｰﾄ!#REF! ->  | AH6: =入力ｼｰﾄ!#REF! ->  | AI6: =入力ｼｰﾄ!#REF! ->  | AJ6: =入力ｼｰﾄ!#REF! ->  | AK6: =入力ｼｰﾄ!#REF! ->  | AL6: =入力ｼｰﾄ!#REF! ->  | AM6: =入力ｼｰﾄ!#REF! ->  | AN6: =入力ｼｰﾄ!#REF! ->  | AO6: =入力ｼｰﾄ!#REF! ->  | AP6: =入力ｼｰﾄ!#REF! ->  | AQ6: =入力ｼｰﾄ!#REF! ->  | AR6: =入力ｼｰﾄ!#REF! ->  | AS6: =入力ｼｰﾄ!#REF! ->  | AT6: =入力ｼｰﾄ!#REF! ->  | AU6: =入力ｼｰﾄ!#REF! ->  | AV6: =入力ｼｰﾄ!#REF! ->  | AW6: =入力ｼｰﾄ!#REF! ->  | AX6: =入力ｼｰﾄ!#REF! ->  | AY6: =入力ｼｰﾄ!#REF! ->  | AZ6: =入力ｼｰﾄ!#REF! ->  | BA6: =入力ｼｰﾄ!#REF! ->  | BB6: =入力ｼｰﾄ!#REF! ->  | BC6: =入力ｼｰﾄ!#REF! ->  | BD6: =入力ｼｰﾄ!#REF! ->  | BE6: =入力ｼｰﾄ!#REF! ->  | BF6: =入力ｼｰﾄ!#REF! ->  | BG6: =入力ｼｰﾄ!#REF! ->  | BH6: =入力ｼｰﾄ!#REF! ->  | BI6: =入力ｼｰﾄ!#REF! ->  | BJ6: =入力ｼｰﾄ!#REF! ->  | BK6: =入力ｼｰﾄ!#REF! ->  | BL6: =入力ｼｰﾄ!#REF! ->  | BM6: =入力ｼｰﾄ!#REF! ->  | BN6: =入力ｼｰﾄ!#REF! ->  | BO6: =入力ｼｰﾄ!#REF! ->  | BP6: =入力ｼｰﾄ!#REF! ->  | BQ6: =入力ｼｰﾄ!#REF! ->  | BR6: =入力ｼｰﾄ!#REF! ->  | BS6: =入力ｼｰﾄ!#REF! ->  | BT6: =入力ｼｰﾄ!#REF! ->  | BU6: =入力ｼｰﾄ!#REF! ->  | BV6: =入力ｼｰﾄ!#REF! ->  | BW6: =入力ｼｰﾄ!#REF! ->  | BX6: =入力ｼｰﾄ!#REF! ->  | BY6: =入力ｼｰﾄ!#REF! ->  | BZ6: =入力ｼｰﾄ!#REF! ->  | CA6: =入力ｼｰﾄ!#REF! ->  | CB6: =入力ｼｰﾄ!#REF! ->  | CC6: =入力ｼｰﾄ!#REF! ->  | CD6: =入力ｼｰﾄ!#REF! ->  | CE6: =入力ｼｰﾄ!#REF! ->  | CF6: =入力ｼｰﾄ!#REF! ->  | CG6: =入力ｼｰﾄ!#REF! ->  | CH6: =入力ｼｰﾄ!#REF! ->  | CI6: =入力ｼｰﾄ!#REF! ->  | CJ6: =入力ｼｰﾄ!#REF! ->  | CK6: =入力ｼｰﾄ!#REF! ->  | CL6: =入力ｼｰﾄ!#REF! ->  | CM6: =入力ｼｰﾄ!#REF! ->  | CN6: =入力ｼｰﾄ!#REF! ->  | CO6: =入力ｼｰﾄ!#REF! ->  | CP6: =入力ｼｰﾄ!#REF! ->  | CQ6: =入力ｼｰﾄ!#REF! ->  | CR6: =入力ｼｰﾄ!#REF! ->  | CS6: =入力ｼｰﾄ!#REF! ->  | CT6: =入力ｼｰﾄ!#REF! ->  | CU6: =入力ｼｰﾄ!#REF! ->  | CV6: =入力ｼｰﾄ!#REF! ->  | CW6: =入力ｼｰﾄ!#REF! ->  | CX6: =入力ｼｰﾄ!#REF! ->  | CY6: =入力ｼｰﾄ!#REF! ->  | CZ6: =入力ｼｰﾄ!#REF! ->  | DA6: =入力ｼｰﾄ!#REF! ->  | DB6: =入力ｼｰﾄ!#REF! ->  | DC6: =入力ｼｰﾄ!#REF! ->  | DD6: =入力ｼｰﾄ!#REF! ->  | DE6: =入力ｼｰﾄ!#REF! ->  | DF6: =入力ｼｰﾄ!#REF! ->  | DG6: =入力ｼｰﾄ!#REF! ->  | DH6: =入力ｼｰﾄ!#REF! ->  | DI6: =入力ｼｰﾄ!#REF! ->  | DJ6: =入力ｼｰﾄ!#REF! ->  | DK6: =入力ｼｰﾄ!#REF! ->  | DL6: =入力ｼｰﾄ!#REF! ->  | DM6: =入力ｼｰﾄ!#REF! ->  | DN6: =入力ｼｰﾄ!#REF! ->  | DO6: =入力ｼｰﾄ!#REF! ->  | DP6: =入力ｼｰﾄ!#REF! ->  | DQ6: =入力ｼｰﾄ!#REF! ->  | DR6: =入力ｼｰﾄ!#REF! ->  | DS6: =入力ｼｰﾄ!#REF! ->  | DT6: =入力ｼｰﾄ!#REF! ->  | DU6: =入力ｼｰﾄ!#REF! ->  | DV6: =入力ｼｰﾄ!#REF! ->  | DW6: =入力ｼｰﾄ!#REF! ->  | DX6: =入力ｼｰﾄ!#REF! ->  | DY6: =入力ｼｰﾄ!#REF! ->  | DZ6: =入力ｼｰﾄ!#REF! ->  | EA6: =入力ｼｰﾄ!#REF! ->  | EB6: =入力ｼｰﾄ!#REF! ->  | EC6: =入力ｼｰﾄ!#REF! ->  | ED6: =入力ｼｰﾄ!#REF! ->  | EE6: =入力ｼｰﾄ!#REF! ->  | EF6: =入力ｼｰﾄ!#REF! ->  | EG6: =入力ｼｰﾄ!#REF! ->  | EH6: =入力ｼｰﾄ!#REF! ->  | EI6: =入力ｼｰﾄ!#REF! ->  | EJ6: =入力ｼｰﾄ!#REF! ->  | EK6: =入力ｼｰﾄ!#REF! ->  | EL6: =入力ｼｰﾄ!#REF! ->  | EM6: =入力ｼｰﾄ!#REF! ->  | EN6: =入力ｼｰﾄ!#REF! ->  | EO6: =入力ｼｰﾄ!#REF! ->  | EP6: =入力ｼｰﾄ!#REF! ->  | EQ6: =入力ｼｰﾄ!#REF! ->  | ER6: =入力ｼｰﾄ!#REF! ->  | ES6: =入力ｼｰﾄ!#REF! ->  | ET6: =入力ｼｰﾄ!#REF! ->  | EU6: =入力ｼｰﾄ!#REF! ->  | EV6: =入力ｼｰﾄ!#REF! ->  | EW6: =入力ｼｰﾄ!#REF! ->  | EX6: =入力ｼｰﾄ!#REF! ->  | EY6: =入力ｼｰﾄ!#REF! ->  | EZ6: =入力ｼｰﾄ!#REF! ->  | FA6: =入力ｼｰﾄ!#REF! ->  | FB6: =入力ｼｰﾄ!#REF! ->  | FC6: =入力ｼｰﾄ!#REF! ->  | FD6: =入力ｼｰﾄ!#REF! ->  | FE6: =入力ｼｰﾄ!#REF! ->  | FF6: =入力ｼｰﾄ!#REF! ->  | FG6: =入力ｼｰﾄ!#REF! ->  | FH6: =入力ｼｰﾄ!#REF! ->  | FI6: =入力ｼｰﾄ!#REF! ->  | FJ6: =入力ｼｰﾄ!#REF! ->  | FK6: =入力ｼｰﾄ!#REF! ->  | FL6: =入力ｼｰﾄ!#REF! ->  | FM6: =入力ｼｰﾄ!#REF! ->  | FN6: =入力ｼｰﾄ!#REF! ->  | FO6: =入力ｼｰﾄ!#REF! ->  | FP6: =入力ｼｰﾄ!#REF! ->  | FQ6: =入力ｼｰﾄ!#REF! ->  | FR6: =入力ｼｰﾄ!#REF! ->  | FS6: =入力ｼｰﾄ!#REF! ->  | FT6: =入力ｼｰﾄ!#REF! ->  | FU6: =入力ｼｰﾄ!#REF! ->  | FV6: =入力ｼｰﾄ!#REF! ->  | FW6: =入力ｼｰﾄ!#REF! ->  | FX6: =入力ｼｰﾄ!#REF! ->  | FY6: =入力ｼｰﾄ!#REF! ->  | FZ6: =入力ｼｰﾄ!#REF! ->  | GA6: =入力ｼｰﾄ!#REF! ->  | GB6: =入力ｼｰﾄ!#REF! ->  | GC6: =入力ｼｰﾄ!#REF! ->  | GD6: =入力ｼｰﾄ!#REF! ->  | GE6: =入力ｼｰﾄ!#REF! ->  | GF6: =入力ｼｰﾄ!#REF! ->  | GG6: =入力ｼｰﾄ!#REF! ->  | GH6: =入力ｼｰﾄ!#REF! ->  | GI6: =入力ｼｰﾄ!#REF! ->  | GJ6: =入力ｼｰﾄ!#REF! ->  | GK6: =入力ｼｰﾄ!#REF! ->  | GL6: =入力ｼｰﾄ!#REF! ->  | GM6: =入力ｼｰﾄ!#REF! ->  | GN6: =入力ｼｰﾄ!#REF! ->  | GO6: =入力ｼｰﾄ!#REF! ->  | GP6: =入力ｼｰﾄ!#REF! ->  | GQ6: =入力ｼｰﾄ!#REF! ->  | GR6: =入力ｼｰﾄ!#REF! ->  | GS6: =入力ｼｰﾄ!#REF! ->  | GT6: =入力ｼｰﾄ!#REF! ->  | GU6: =入力ｼｰﾄ!#REF! ->  | GV6: =入力ｼｰﾄ!#REF! ->  | GW6: =入力ｼｰﾄ!#REF! ->  | GX6: =入力ｼｰﾄ!#REF! ->  | GY6: =入力ｼｰﾄ!#REF! ->  | GZ6: =入力ｼｰﾄ!#REF! ->  | HA6: =入力ｼｰﾄ!#REF! ->  | HB6: =入力ｼｰﾄ!#REF! ->  | HC6: =入力ｼｰﾄ!#REF! ->  | HD6: =入力ｼｰﾄ!#REF! ->  | HE6: =入力ｼｰﾄ!#REF! ->  | HF6: =入力ｼｰﾄ!#REF! ->  | HG6: =入力ｼｰﾄ!#REF! ->  | HH6: =入力ｼｰﾄ!#REF! ->  | HI6: =入力ｼｰﾄ!#REF! ->  | HJ6: =入力ｼｰﾄ!#REF! ->  | HK6: =入力ｼｰﾄ!#REF! ->  | HL6: =入力ｼｰﾄ!#REF! ->  | HM6: =入力ｼｰﾄ!#REF! ->  | HN6: =入力ｼｰﾄ!#REF! ->  | HO6: =入力ｼｰﾄ!#REF! ->  | HP6: =入力ｼｰﾄ!#REF! ->  | HQ6: =入力ｼｰﾄ!#REF! ->  | HR6: =入力ｼｰﾄ!#REF! ->  | HS6: =入力ｼｰﾄ!#REF! ->  | HT6: =入力ｼｰﾄ!#REF! ->  | HU6: =入力ｼｰﾄ!#REF! ->  | HV6: =入力ｼｰﾄ!#REF! ->  | HW6: =入力ｼｰﾄ!#REF! ->  | HX6: =入力ｼｰﾄ!#REF! ->  | HY6: =入力ｼｰﾄ!#REF! ->  | HZ6: =入力ｼｰﾄ!#REF! ->  | IA6: =入力ｼｰﾄ!#REF! ->  | IB6: =入力ｼｰﾄ!#REF! ->  | IC6: =入力ｼｰﾄ!#REF! ->  | ID6: =入力ｼｰﾄ!#REF! ->  | IE6: =入力ｼｰﾄ!#REF! ->  | IF6: =入力ｼｰﾄ!#REF! ->  | IG6: =入力ｼｰﾄ!#REF! -> 
A8: ■元利均等 | B8: 1 | C8: 2 | D8: 3 | E8: 4 | F8: 5 | G8: 6 | H8: 7 | I8: 8 | J8: 9 | K8: 10 | L8: 11 | M8: 12 | N8: 13 | O8: 14 | P8: 15 | Q8: 16 | R8: 17 | S8: 18 | T8: 19 | U8: 20
A9: 元金 | B9: =IF(B4<=(B5*12),PPMT(B3/12,B4,B5*12,B6),"") ->  | BN9: =IF(BN4<=(BN5*12),PPMT(BN3/12,BN4,BN5*12,BN6),"") ->  | DZ9: =IF(DZ4<=(DZ5*12),PPMT(DZ3/12,DZ4,DZ5*12,DZ6),"") ->  | GL9: =IF(GL4<=(GL5*12),PPMT(GL3/12,GL4,GL5*12,GL6),"") -> 
A10: 返済 | B10: =IF(B4<=(B5*12),PMT(B3/12,B5*12,B6),"") ->  | BN10: =IF(BN4<=(BN5*12),PMT(BN3/12,BN5*12,BN6),"") ->  | DZ10: =IF(DZ4<=(DZ5*12),PMT(DZ3/12,DZ5*12,DZ6),"") ->  | GL10: =IF(GL4<=(GL5*12),PMT(GL3/12,GL5*12,GL6),"") -> 
A11: 利息 | B11: =IF(B4<=(B5*12),B10-B9,"") ->  | BN11: =IF(BN4<=(BN5*12),BN10-BN9,"") ->  | DZ11: =IF(DZ4<=(DZ5*12),DZ10-DZ9,"") ->  | GL11: =IF(GL4<=(GL5*12),GL10-GL9,"") -> 
A13: 元金 | B13: =SUM(B9:M9) ->  | C13: =SUM(N9:Y9) ->  | D13: =SUM(Z9:AK9) ->  | E13: =SUM(AL9:AW9) ->  | F13: =SUM(AX9:BI9) ->  | G13: =SUM(BJ9:BU9) ->  | H13: =SUM(BV9:CG9) ->  | I13: =SUM(CH9:CS9) ->  | J13: =SUM(CT9:DE9) ->  | K13: =SUM(DF9:DQ9) ->  | L13: =SUM(DR9:EC9) ->  | M13: =SUM(ED9:EO9) ->  | N13: =SUM(EP9:FA9) ->  | O13: =SUM(FB9:FM9) ->  | P13: =SUM(FN9:FY9) ->  | Q13: =SUM(FZ9:GK9) ->  | R13: =SUM(GL9:GW9) ->  | S13: =SUM(GX9:HI9) ->  | T13: =SUM(HJ9:HU9) ->  | U13: =SUM(HV9:IG9) ->  | V13: =SUM(B13:U13) -> 
A14: 利息 | B14: =SUM(B11:M11) ->  | C14: =SUM(N11:Y11) ->  | D14: =SUM(Z11:AK11) ->  | E14: =SUM(AL11:AW11) ->  | F14: =SUM(AX11:BI11) ->  | G14: =SUM(BJ11:BU11) ->  | H14: =SUM(BV11:CG11) ->  | I14: =SUM(CH11:CS11) ->  | J14: =SUM(CT11:DE11) ->  | K14: =SUM(DF11:DQ11) ->  | L14: =SUM(DR11:EC11) ->  | M14: =SUM(ED11:EO11) ->  | N14: =SUM(EP11:FA11) ->  | O14: =SUM(FB11:FM11) ->  | P14: =SUM(FN11:FY11) ->  | Q14: =SUM(FZ11:GK11) ->  | R14: =SUM(GL11:GW11) ->  | S14: =SUM(GX11:HI11) ->  | T14: =SUM(HJ11:HU11) ->  | U14: =SUM(HV11:IG11) ->  | V14: =SUM(B14:U14) -> 
A17: ■元金均等 | B17: 1 | C17: 2 | D17: 3 | E17: 4 | F17: 5 | G17: 6 | H17: 7 | I17: 8 | J17: 9 | K17: 10 | L17: 11 | M17: 12 | N17: 13 | O17: 14 | P17: 15 | Q17: 16 | R17: 17 | S17: 18 | T17: 19 | U17: 20 | V17: 21 | W17: 22 | X17: 23 | Y17: 24 | Z17: 25 | AA17: 26 | AB17: 27 | AC17: 28 | AD17: 29 | AE17: 30 | AF17: 31 | AG17: 32 | AH17: 33 | AI17: 34 | AJ17: 35 | AK17: 36 | AL17: 37 | AM17: 38 | AN17: 39 | AO17: 40 | AP17: 41 | AQ17: 42 | AR17: 43 | AS17: 44 | AT17: 45 | AU17: 46 | AV17: 47 | AW17: 48 | AX17: 49 | AY17: 50 | AZ17: 51 | BA17: 52 | BB17: 53 | BC17: 54 | BD17: 55 | BE17: 56 | BF17: 57 | BG17: 58 | BH17: 59 | BI17: 60 | BJ17: 61 | BK17: 62 | BL17: 63 | BM17: 64 | BN17: 65 | BO17: 66 | BP17: 67 | BQ17: 68 | BR17: 69 | BS17: 70 | BT17: 71 | BU17: 72 | BV17: 73 | BW17: 74 | BX17: 75 | BY17: 76 | BZ17: 77 | CA17: 78 | CB17: 79 | CC17: 80 | CD17: 81 | CE17: 82 | CF17: 83 | CG17: 84 | CH17: 85 | CI17: 86 | CJ17: 87 | CK17: 88 | CL17: 89 | CM17: 90 | CN17: 91 | CO17: 92 | CP17: 93 | CQ17: 94 | CR17: 95 | CS17: 96 | CT17: 97 | CU17: 98 | CV17: 99 | CW17: 100 | CX17: 101 | CY17: 102 | CZ17: 103 | DA17: 104 | DB17: 105 | DC17: 106 | DD17: 107 | DE17: 108 | DF17: 109 | DG17: 110 | DH17: 111 | DI17: 112 | DJ17: 113 | DK17: 114 | DL17: 115 | DM17: 116 | DN17: 117 | DO17: 118 | DP17: 119 | DQ17: 120 | DR17: 121 | DS17: 122 | DT17: 123 | DU17: 124 | DV17: 125 | DW17: 126 | DX17: 127 | DY17: 128 | DZ17: 129 | EA17: 130 | EB17: 131 | EC17: 132 | ED17: 133 | EE17: 134 | EF17: 135 | EG17: 136 | EH17: 137 | EI17: 138 | EJ17: 139 | EK17: 140 | EL17: 141 | EM17: 142 | EN17: 143 | EO17: 144 | EP17: 145 | EQ17: 146 | ER17: 147 | ES17: 148 | ET17: 149 | EU17: 150 | EV17: 151 | EW17: 152 | EX17: 153 | EY17: 154 | EZ17: 155 | FA17: 156 | FB17: 157 | FC17: 158 | FD17: 159 | FE17: 160 | FF17: 161 | FG17: 162 | FH17: 163 | FI17: 164 | FJ17: 165 | FK17: 166 | FL17: 167 | FM17: 168 | FN17: 169 | FO17: 170 | FP17: 171 | FQ17: 172 | FR17: 173 | FS17: 174 | FT17: 175 | FU17: 176 | FV17: 177 | FW17: 178 | FX17: 179 | FY17: 180 | FZ17: 181 | GA17: 182 | GB17: 183 | GC17: 184 | GD17: 185 | GE17: 186 | GF17: 187 | GG17: 188 | GH17: 189 | GI17: 190 | GJ17: 191 | GK17: 192 | GL17: 193 | GM17: 194 | GN17: 195 | GO17: 196 | GP17: 197 | GQ17: 198 | GR17: 199 | GS17: 200 | GT17: 201 | GU17: 202 | GV17: 203 | GW17: 204 | GX17: 205 | GY17: 206 | GZ17: 207 | HA17: 208 | HB17: 209 | HC17: 210 | HD17: 211 | HE17: 212 | HF17: 213 | HG17: 214 | HH17: 215 | HI17: 216 | HJ17: 217 | HK17: 218 | HL17: 219 | HM17: 220 | HN17: 221 | HO17: 222 | HP17: 223 | HQ17: 224 | HR17: 225 | HS17: 226 | HT17: 227 | HU17: 228 | HV17: 229 | HW17: 230 | HX17: 231 | HY17: 232 | HZ17: 233 | IA17: 234 | IB17: 235 | IC17: 236 | ID17: 237 | IE17: 238 | IF17: 239 | IG17: 240
A18: 元金 | B18: =IF(B4<=(B5*12),-B6/(B5*12),"") ->  | BN18: =IF(BN4<=(BN5*12),-BN6/(BN5*12),"") ->  | DZ18: =IF(DZ4<=(DZ5*12),-DZ6/(DZ5*12),"") ->  | GL18: =IF(GL4<=(GL5*12),-GL6/(GL5*12),"") -> 
A19: 返済 | B19: =IF(B4<=(B5*12),B18+B20,"") ->  | BN19: =IF(BN4<=(BN5*12),BN18+BN20,"") ->  | DZ19: =IF(DZ4<=(DZ5*12),DZ18+DZ20,"") ->  | GL19: =IF(GL4<=(GL5*12),GL18+GL20,"") -> 
A20: 利息 | B20: =IF(B4<=(B5*12),ISPMT(B3/12,B4,B5*12,B6),"") ->  | BN20: =IF(BN4<=(BN5*12),ISPMT(BN3/12,BN4,BN5*12,BN6),"") ->  | DZ20: =IF(DZ4<=(DZ5*12),ISPMT(DZ3/12,DZ4,DZ5*12,DZ6),"") ->  | GL20: =IF(GL4<=(GL5*12),ISPMT(GL3/12,GL4,GL5*12,GL6),"") -> 
A22: 元金 | B22: =SUM(B18:M18) ->  | C22: =SUM(N18:Y18) ->  | D22: =SUM(Z18:AK18) ->  | E22: =SUM(AL18:AW18) ->  | F22: =SUM(AX18:BI18) ->  | G22: =SUM(BJ18:BU18) ->  | H22: =SUM(BV18:CG18) ->  | I22: =SUM(CH18:CS18) ->  | J22: =SUM(CT18:DE18) ->  | K22: =SUM(DF18:DQ18) ->  | L22: =SUM(DR18:EC18) ->  | M22: =SUM(ED18:EO18) ->  | N22: =SUM(EP18:FA18) ->  | O22: =SUM(FB18:FM18) ->  | P22: =SUM(FN18:FY18) ->  | Q22: =SUM(FZ18:GK18) ->  | R22: =SUM(GL18:GW18) ->  | S22: =SUM(GX18:HI18) ->  | T22: =SUM(HJ18:HU18) ->  | U22: =SUM(HV18:IG18) ->  | V22: =SUM(B22:U22) -> 
A23: 利息 | B23: =SUM(B20:M20) ->  | C23: =SUM(N20:Y20) ->  | D23: =SUM(Z20:AK20) ->  | E23: =SUM(AL20:AW20) ->  | F23: =SUM(AX20:BI20) ->  | G23: =SUM(BJ20:BU20) ->  | H23: =SUM(BV20:CG20) ->  | I23: =SUM(CH20:CS20) ->  | J23: =SUM(CT20:DE20) ->  | K23: =SUM(DF20:DQ20) ->  | L23: =SUM(DR20:EC20) ->  | M23: =SUM(ED20:EO20) ->  | N23: =SUM(EP20:FA20) ->  | O23: =SUM(FB20:FM20) ->  | P23: =SUM(FN20:FY20) ->  | Q23: =SUM(FZ20:GK20) ->  | R23: =SUM(GL20:GW20) ->  | S23: =SUM(GX20:HI20) ->  | T23: =SUM(HJ20:HU20) ->  | U23: =SUM(HV20:IG20) ->  | V23: =SUM(B23:U23) -> 
A26: 投資回収 | B26: =COUNTIF(プレゼンｼｰﾄ!E32:X32,"<0") -> 0

Sheet プレゼンｼｰﾄ
A1: 発電事業収支シミュレーションⅡ
C3: 設備関連 | J3: コスト関連
C4: =入力ｼｰﾄ!B4 -> 設置枚数 | F4: =入力ｼｰﾄ!D4 -> 100 | G4: =入力ｼｰﾄ!E4 -> 枚 | J4: イニシャルコスト | M4: =入力ｼｰﾄ!D13/10000 -> 932.5 | N4: 万円（税抜）
C5: =入力ｼｰﾄ!B3 -> モジュール最大出力 | F5: =入力ｼｰﾄ!D3 -> 250 | G5: =入力ｼｰﾄ!E3 -> w | J5: 売電単価(税抜)※2 | M5: =入力ｼｰﾄ!D9 -> 32 | N5: =入力ｼｰﾄ!E8 -> 円／kWh
C6: =入力ｼｰﾄ!B5 -> システム容量 | F6: =入力ｼｰﾄ!D5 -> 25 | G6: =入力ｼｰﾄ!E5 -> kWh | J6: Co2削減 ※3 | M6: =F8*0.413 -> 12906.25 | N6: t-co2
C7: 年間１Kwの発電係数※1 | F7: =入力ｼｰﾄ!D6 -> 1250 | G7: =入力ｼｰﾄ!E6 -> kWh／年
C8: =入力ｼｰﾄ!B7 -> 想定年間発電量 | F8: =入力ｼｰﾄ!D7 -> 31250 | G8: =入力ｼｰﾄ!E7 -> kWh／年 | J8: 20年間の総発電量 | M8: =(F8*20)/1000 -> 625 | N8: MWh
C10: 1年間の総発電量 | F10: =入力ｼｰﾄ!D7/1000 -> 31.25 | G10: kwh | J10: 20年間売電金額 | M10: =((M8*1000)*入力ｼｰﾄ!D9)/10000 -> 2000 | N10: 万円
C12: 1年間の売電金額 | F12: =((F10*1000)*入力ｼｰﾄ!D9)/10000 -> 100 | G12: 万円 | J12: イニシャルコスト | M12: =入力ｼｰﾄ!D13/10000 -> 932.5 | N12: 万円
J14: 20年間の売電利益 | M14: =M10-M12 -> 1067.5 | N14: 万円
C15: =M4/F12 -> 9.325
E16: 年以内で投資回収が可能と試算されます。
L19: ※下記計算表はパネルのロス率を含んだ計算
D20: 設置時点 | E20: 1年目 | F20: 2年目 | G20: 3年目 | H20: 4年目 | I20: 5年目 | J20: 6年目 | K20: 7年目 | L20: 8年目 | M20: 9年目 | N20: 10年目
B21: 総発電量(kWh) | D21: 0 | E21: =(F8*入力ｼｰﾄ!D21)/100 -> 31171.875 | F21: =(E21*入力ｼｰﾄ!D21)/100 -> 31093.94531 | G21: =(F21*入力ｼｰﾄ!D21)/100 -> 31016.21045 | H21: =(G21*入力ｼｰﾄ!D21)/100 -> 30938.66992 | I21: =(H21*入力ｼｰﾄ!D21)/100 -> 30861.32325 | J21: =(I21*入力ｼｰﾄ!D21)/100 -> 30784.16994 | K21: =(J21*入力ｼｰﾄ!D21)/100 -> 30707.20952 | L21: =(K21*入力ｼｰﾄ!D21)/100 -> 30630.44149 | M21: =(L21*入力ｼｰﾄ!D21)/100 -> 30553.86539 | N21: =(M21*入力ｼｰﾄ!D21)/100 -> 30477.48072
B22: 売電価格（年間） | D22: 0 | E22: =E21*入力ｼｰﾄ!D9 -> 997500 | F22: =F21*入力ｼｰﾄ!D9 -> 995006.25 | G22: =G21*入力ｼｰﾄ!D9 -> 992518.7344 | H22: =H21*入力ｼｰﾄ!D9 -> 990037.4375 | I22: =I21*入力ｼｰﾄ!D9 -> 987562.3439 | J22: =J21*入力ｼｰﾄ!D9 -> 985093.4381 | K22: =K21*入力ｼｰﾄ!D9 -> 982630.7045 | L22: =L21*入力ｼｰﾄ!D9 -> 980174.1277 | M22: =M21*入力ｼｰﾄ!D9 -> 977723.6924 | N22: =N21*入力ｼｰﾄ!D9 -> 975279.3832
B23: イニシャルコスト | D23: =(M4*-1)*10000 -> -9325000 | E23: =D23+E22 -> -8327500 | F23: -7332493.75 | G23: -6339975.016 | H23: -5349937.578 | I23: -4362375.234 | J23: -3377281.796 | K23: -2394651.092 | L23: -1414476.964 | M23: -436753.2714 | N23: 538526.1118
B24: 均等割コスト※4 | D24: =M4*10000 -> 9325000 | E24: =D24/17 -> 548529.4118 | F24: =D24/17 -> 548529.4118 | G24: =D24/17 -> 548529.4118 | H24: =D24/17 -> 548529.4118 | I24: =D24/17 -> 548529.4118 | J24: =D24/17 -> 548529.4118 | K24: =D24/17 -> 548529.4118 | L24: =D24/17 -> 548529.4118 | M24: =D24/17 -> 548529.4118 | N24: =D24/17 -> 548529.4118
B25: 年間利益 | E25: =E22-E24 -> 448970.5882 | F25: 446476.8382 | G25: 443989.3226 | H25: 441508.0258 | I25: 439032.9322 | J25: 436564.0263 | K25: 434101.2927 | L25: 431644.716 | M25: 429194.2806 | N25: 426749.9714
E27: 11年目 | F27: 12年目 | G27: 13年目 | H27: 14年目 | I27: 15年目 | J27: 16年目 | K27: 17年目 | L27: 18年目 | M27: 19年目 | N27: 20年目
E28: =(N21*入力ｼｰﾄ!D21)/100 -> 30401.28702 | F28: =(E28*入力ｼｰﾄ!D21)/100 -> 30325.2838 | G28: =(F28*入力ｼｰﾄ!D21)/100 -> 30249.4706 | H28: =(G28*入力ｼｰﾄ!D21)/100 -> 30173.84692 | I28: =(H28*入力ｼｰﾄ!D21)/100 -> 30098.4123 | J28: =(I28*入力ｼｰﾄ!D21)/100 -> 30023.16627 | K28: =(J28*入力ｼｰﾄ!D21)/100 -> 29948.10836 | L28: =(K28*入力ｼｰﾄ!D21)/100 -> 29873.23808 | M28: =(L28*入力ｼｰﾄ!D21)/100 -> 29798.55499 | N28: =(M28*入力ｼｰﾄ!D21)/100 -> 29724.0586
E29: =E28*入力ｼｰﾄ!D9 -> 972841.1847 | F29: =F28*入力ｼｰﾄ!D9 -> 970409.0818 | G29: =G28*入力ｼｰﾄ!D9 -> 967983.0591 | H29: =H28*入力ｼｰﾄ!D9 -> 965563.1014 | I29: =I28*入力ｼｰﾄ!D9 -> 963149.1937 | J29: =J28*入力ｼｰﾄ!D9 -> 960741.3207 | K29: =K28*入力ｼｰﾄ!D9 -> 958339.4674 | L29: =L28*入力ｼｰﾄ!D9 -> 955943.6187 | M29: =M28*入力ｼｰﾄ!D9 -> 953553.7597 | N29: =N28*入力ｼｰﾄ!D9 -> 951169.8753 | O29: 11年目 | P29: 12年目 | Q29: 13年目 | R29: 14年目 | S29: 15年目 | T29: 16年目 | U29: 17年目 | V29: 18年目 | W29: 19年目 | X29: 20年目
E30: =N23+E29 -> 1511367.296 | F30: =E30+F29 -> 2481776.378 | G30: 3449759.437 | H30: 4415322.539 | I30: 5378471.732 | J30: 6339213.053 | K30: 7297552.52 | L30: 8253496.139 | M30: 9207049.899 | N30: 10158219.77 | O30: =#REF!/1000 -> 
E31: =D24/17 -> 548529.4118 | F31: =D24/17 -> 548529.4118 | G31: =D24/17 -> 548529.4118 | H31: =D24/17 -> 548529.4118 | I31: =D24/17 -> 548529.4118 | J31: =D24/17 -> 548529.4118 | K31: =D24/17 -> 548529.4118 | L31: 0 | M31: 0 | N31: 0
E32: =E29-E31 -> 424311.773 | F32: 421879.67 | G32: 419453.6473 | H32: 417033.6896 | I32: 414619.7819 | J32: 412211.9089 | K32: 409810.0556 | L32: =L29 -> 955943.6187 | M32: =M29 -> 953553.7597 | N32: =N29 -> 951169.8753 | O32: =N23+O31 ->  | P32: =O32+P31 -> 
C33: 年間発電量÷12ヶ月（平均） 1月＝75% 2月＝80% 3月＝115% 4月＝120% 5月＝135% 6月＝90% 7月＝110% 8月＝120% 9月＝95% 10月＝110% 11月＝80% 12月＝70%
B34: *弊社（福岡県直方市案件）実績に基づき算出した計算です。
B35: *２ | C35: ="売電単価は" & 入力ｼｰﾄ!D9*(1+入力ｼｰﾄ!D26) & "円ですが"&入力ｼｰﾄ!D9*(0+入力ｼｰﾄ!D26) &"円は消費税ため、" &入力ｼｰﾄ!D9& "円での計算になっています。（平成26年4月1日からの暫定法律金額でその後の金額は未定です）" -> 売電単価は34.56円ですが2.56円は消費税ため、32円での計算になっています。（平成26年4月1日からの暫定法律金額でその後の金額は未定です） | L35: 株式会社 ジャパンゲート
B36: *３ | C36: CO２削減の係数はグリーンエネルギーCO2削減相当量認証制度の係数を使っています。 | L36: 〒822-0022 福岡県直方市知古771-9
B37: *４ | C37: 総発電量はパネルの発電保証の年平均0.25%ずつ低下させ計算しています。 | L37: TEL 0949-28-8545 / FAX 0949-28-8546
B38: 注意事項
B39: 上記計算において、売電量はパネルのロス率以外に電気設備の抵抗、パネルの方向、傾斜角、外気温によるマイナスが有り、又発電係数も上下するので実際の売電量は上記数値より多少変わります。
B40: 上記計算において、年間利益等は固定資産税などの租税、借入が有る時の金利、又会社によっての経理方法で多少変わります。
B41: 均等割コストは、法定償却期間が１7年なので17年間で完全償却する計算となります。
B42: 現行の優遇 ： 固定資産の軽減、100％の一括償却などの税制優遇処置が有り内容は当社担当もしくは管轄の税務署、役所にて確認してください。
